fUSD/lending_fUSD_20240925
["ID","MTS","AMOUNT","RATE_DAILY","PERIOD"]
[339196893,1727293833040,-150.0,0.0001295,2]
[339196894,1727293833050,-150.0,0.0001295,2]
[339196895,1727293833059,-150.0,0.00012955,2]
[339196896,1727293833068,-150.0,0.0001296,2]
[339196897,1727293833077,-150.0,0.00012968,2]
[339196898,1727293833087,-500.0,0.00012973,2]
[339196899,1727293833096,-150.0,0.00012977,2]
[339196900,1727293833105,-150.0,0.00012979,2]
[339196901,1727293833114,-237.47651731,0.0001299,2]
[339196902,1727293833124,-151.51,0.0001299,2]
[339196903,1727293833136,-150.0,0.00012993,2]
[339196904,1727293833146,-500.0,0.00012999,2]
[339196905,1727293833156,-500.0,0.00012999,2]
[339196906,1727293833165,-500.0,0.00012999,2]
[339196907,1727293833175,-500.0,0.00012999,2]
[339196908,1727293833184,-500.0,0.00012999,2]
[339196909,1727293833193,-500.0,0.00012999,2]
[339196910,1727293833202,-227.12938384,0.00012999,2]
[339196911,1727293833212,-500.0,0.00012999,2]
[339196912,1727293833222,-355.64277646,0.00012999,2]
[339196913,1727293833231,-500.0,0.00012999,2]
[339196914,1727293833240,-403.5,0.00012999,2]
[339196915,1727293833249,-500.0,0.00012999,2]
[339196916,1727293833258,-436.20307847,0.00012999,2]
[339196917,1727293833268,-500.0,0.00012999,2]
[339196918,1727293833276,-496.32007842,0.00012999,2]
[339196919,1727293833285,-500.0,0.00012999,2]
[339196920,1727293833294,-500.0,0.00012999,2]
[339196921,1727293833304,-500.0,0.00012999,2]
[339196922,1727293833313,-500.0,0.00012999,2]
[339196923,1727293833325,-1017.29914654,0.00012999,2]
[339196924,1727293833334,-213.33630603,0.00012999,2]
[339196925,1727293833343,-282.02587164,0.00012999,2]
[339196926,1727293833352,-343490.81953464,0.00013,2]
[339196927,1727293833368,-218665.61916361,0.00013,2]
[339196928,1727293833381,-30389.27840015,0.00013,2]
[339196929,1727293833392,-481.470523,0.00013,2]
[339196930,1727293833403,-4700.67069528,0.00013,2]
[339196931,1727293833415,-766.71121484,0.00013,2]
[339196932,1727293833428,-82861.26760879,0.00013,2]
[339196933,1727293833437,-294.03,0.00013,2]
[339196934,1727293833446,-558.0,0.00013,2]
[339196935,1727293833455,-932.0,0.00013,2]
[339196936,1727293833464,-810.0,0.00013,2]
[339196937,1727293833473,-438.223,0.00013,2]
[339196938,1727293833482,-804.0,0.00013,2]
[339196939,1727293833491,-150.0,0.00013,2]
[339196940,1727293833501,-257437.99045111,0.00013,2]
[339196941,1727293833512,-470.60202167,0.00013,2]
[339196942,1727293833523,-446.45853724,0.00013,2]
[339196943,1727293833533,-569.99999994,0.00013,2]
[339196944,1727293833545,-351.899999,0.00013,2]
[339196945,1727293833559,-8719.79523922,0.00013,2]
[339196946,1727293833571,-299.78144014,0.00013,2]
[339196949,1727293838055,-1075.49637378,0.0001164,2]
[339196950,1727293838212,-544.38170658,0.0001164,2]
[339196951,1727293838224,-577.87520853,0.0001164,2]
[339196952,1727293838267,-397.33095442,0.0001164,2]
[339196953,1727293838375,-1111.14398307,0.0001164,2]
[339196954,1727293838389,-1470.99385786,0.0001164,2]
[339196955,1727293838400,-999.83499872,0.0001164,2]
[339196956,1727293838411,-196.41906039,0.0001164,2]
[339196957,1727293838421,-18884.93953555,0.00013,2]
[339196958,1727293838431,-16183.61727271,0.00013,2]
[339196965,1727293838652,-4951.41603906,0.00013,2]
[339196968,1727293838667,-4678.43151661,0.00013,2]
[339196970,1727293838678,-1840.08345201,0.00013,2]
[339196972,1727293838689,-13929.74214198,0.00013,2]
[339196974,1727293838701,-29166.63838452,0.00013,2]
[339196976,1727293838712,-2383.05429346,0.00013,2]
[339196987,1727293839851,-1765.19999999,0.00013,2]
[339196988,1727293839875,-300.0,0.00013,2]
[339196989,1727293839905,-425.0,0.00013,2]
[339196990,1727293839960,-485.18718183,0.00013,2]
[339196991,1727293839972,-3555.74753916,0.00013,2]
[339196992,1727293840070,-242476.69757797,0.00013,2]
[339196993,1727293840080,-22194.97216554,0.00013,2]
[339196994,1727293840090,-377.74581237,0.00013,2]
[339196995,1727293840102,-594.39655094,0.00013,2]
[339196996,1727293840176,-141366.67604883,0.00013,2]
[339196997,1727293840188,-704.74178858,0.00013,2]
[339196998,1727293840200,-440.96864,0.00013,2]
[339196999,1727293840212,-950.90019971,0.00013,2]
[339197000,1727293840225,-24924.90000006,0.00013,2]
[339197010,1727293842937,-267.84,0.00013,2]
[339197011,1727293842950,-1053714.72187896,0.00013,2]
[339197012,1727293842959,-202209.69465269,0.00013,2]
[339197013,1727293842968,-464046.30068587,0.00013,2]
[339197014,1727293843096,-15842.67023661,0.00013,2]
[339197015,1727293843148,-437.050093,0.00013,2]
[339197016,1727293843158,-1008.098861,0.00013,2]
[339197017,1727293843170,-16663.41501804,0.00013,2]
[339197031,1727293845822,-24060.66370396,0.00013,2]
[339197034,1727293845834,-16744.559,0.00013,2]
[339197036,1727293845845,-3490.9987,0.00013,2]
[339197037,1727293845855,-2366.29051615,0.00013,2]
[339197038,1727293845875,-2874.31906734,0.00013,2]
[339197039,1727293845890,-5686.35000001,0.00013,2]
[339197040,1727293845901,-465.20613408,0.00013,2]
[339197041,1727293845911,-536.71473358,0.00013,2]
[339197042,1727293845931,-6271.4,0.00013,2]
[339197043,1727293845943,-401.21832325,0.00013,2]
[339197044,1727293845954,-300.0,0.00013,2]
[339197045,1727293845987,-322.8916,0.00013,2]
[339197046,1727293845998,-354921.36572819,0.00013,2]
[339197047,1727293846009,-3274.01606386,0.00013,2]
[339197048,1727293846020,-738.8,0.00013,2]
[339197049,1727293846031,-859.71593629,0.00013,2]
[339197050,1727293846048,-1253.16529958,0.00013,2]
[339197051,1727293846104,-1143.278,0.00013,2]
[339197052,1727293846162,-3001.3,0.00013,2]
[339197068,1727293863614,156.67,0.00013918,30]
[339197069,1727293932715,500.0,0.00010164,2]
[339197070,1727293980750,500.0,0.00010164,2]
[339197071,1727294000307,500.0,0.00010164,2]
[339197072,1727294158743,500.0,0.00010164,2]
[339197073,1727294203164,500.0,0.00010164,2]
[339197074,1727294266152,681.42,0.00010205,2]
[339197076,1727294293548,500.0,0.00010164,2]
[339197078,1727294408275,156.67,0.00013918,30]
[339197079,1727294560051,500.0,0.00010164,2]
[339197104,1727294653635,1050.0,0.00011,2]
[339197113,1727294855019,178.45,0.00010959,2]
[339197114,1727294898964,681.05,0.00010207,2]
[339197125,1727295034940,-250.0,0.00012094,2]
[339197126,1727295034950,-202.8,0.00012094,2]
[339197127,1727295034960,-2000.0,0.00012099,2]
[339197128,1727295034970,-260.78,0.00012111,2]
[339197129,1727295034980,-8084.99,0.00012111,2]
[339197141,1727295035200,-169.35,0.00012111,2]
[339197143,1727295035209,-250.0,0.00012111,2]
[339197145,1727295035220,-198.9,0.00012111,2]
[339197147,1727295035229,-1000.0,0.00012122,2]
[339197149,1727295035239,-681.05,0.00012471,2]
[339197151,1727295035248,-152.0,0.0001254,3]
[339197152,1727295035257,-150.0,0.00012899,2]
[339197153,1727295035266,-6685.1077,0.000129,2]
[339197154,1727295035275,-3071.8389,0.000129,2]
[339197155,1727295035285,-500.6895,0.000129,2]
[339197156,1727295035294,-186.507,0.000129,2]
[339197157,1727295035303,-1006.36,0.000129,2]
[339197158,1727295035312,-1265.6727009,0.00012996,2]
[339197159,1727295035321,-430610.98143113,0.00013,2]
[339197164,1727295038233,-1000.0,0.000129,2]
[339197165,1727295038243,-17943.76812934,0.00013,2]
[339197166,1727295038255,-6214.73959699,0.00013,2]
[339197167,1727295038266,-830.76722118,0.00013,2]
[339197168,1727295038392,-238228.67735274,0.00013,2]
[339197169,1727295038403,-150.0,0.00013,2]
[339197170,1727295038413,-401916.62603694,0.00013,2]
[339197171,1727295038425,-1080.68345125,0.00013,2]
[339197172,1727295038437,-8208.53520196,0.00013,2]
[339197173,1727295038447,-60352.48900671,0.00013,2]
[339197174,1727295038458,-312.22017178,0.00013,2]
[339197175,1727295038498,-13232.15369915,0.00013,2]
[339197176,1727295038510,-393.01182328,0.00013,2]
[339197177,1727295038553,-9487.03170443,0.00013,2]
[339197178,1727295038565,-618.74932003,0.00013,2]
[339197179,1727295038577,-1035.7815816,0.00013,2]
[339197180,1727295038589,-1959.02575318,0.00013,2]
[339197181,1727295038602,-7969.17193469,0.00013,2]
[339197183,1727295038614,-4235.85334958,0.00013,2]
[339197185,1727295038627,-1019.83248483,0.00013,2]
[339197187,1727295038638,-509.16789362,0.00013,2]
[339197209,1727295040024,-478.75263346,0.00013,2]
[339197215,1727295040079,-475127.56990678,0.00013,2]
[339197216,1727295040092,-1986.34492326,0.00013,2]
[339197217,1727295040103,-304.33735203,0.00013,2]
[339197218,1727295040114,-385.034663,0.00013,2]
[339197220,1727295040125,-889.49999995,0.00013,2]
[339197223,1727295040137,-998.56,0.00013,2]
[339197225,1727295040148,-400.075,0.00013,2]
[339197227,1727295040159,-6896.22910835,0.00013,2]
[339197229,1727295040170,-1324.73356299,0.00013,2]
[339197231,1727295040181,-2303.5,0.00013,2]
[339197234,1727295040193,-1663.5002,0.00013,2]
[339197236,1727295040202,-2266.00000008,0.00013,2]
[339197238,1727295040212,-282.8799247,0.00013,2]
[339197240,1727295040223,-844.59940541,0.00013,2]
[339197242,1727295040234,-33598.95918226,0.00013,2]
[339197244,1727295040245,-15487.65407168,0.00013,2]
[339197246,1727295040255,-23233.76659287,0.00013,2]
[339197248,1727295040266,-701.66503495,0.00013,2]
[339197250,1727295040277,-1787.55805162,0.00013,2]
[339197253,1727295040288,-6823.92594344,0.00013,2]
[339197255,1727295040298,-602.7973578,0.00013,2]
[339197257,1727295040309,-476.45777715,0.00013,2]
[339197259,1727295040319,-5142.19115269,0.00013,2]
[339197260,1727295040330,-351.91594489,0.00013,2]
[339197261,1727295040341,-621.51461131,0.00013,2]
[339197262,1727295040352,-435.39437354,0.00013,2]
[339197263,1727295040362,-572.19529931,0.00013,2]
[339197264,1727295040373,-660.549,0.00013,2]
[339197265,1727295040383,-316.965,0.00013,2]
[339197266,1727295040395,-20776.22156443,0.00013,2]
[339197267,1727295040405,-13471.89695095,0.00013,2]
[339197268,1727295040416,-129944.91072801,0.00013,2]
[339197269,1727295040427,-83348.20398924,0.00013,2]
[339197319,1727295043084,-200.0,0.000119,4]
[339197320,1727295043093,-640.91615652,0.0001235,2]
[339197321,1727295043103,-169.04065988,0.000129,2]
[339197322,1727295043112,-2157758.79291691,0.00013,2]
[339197323,1727295043123,-193350.27036194,0.00013,2]
[339197324,1727295043133,-381759.72963806,0.00013,2]
[339197325,1727295043144,-134670.0,0.00013,2]
[339197326,1727295043165,-500.0,0.00012,4]
[339197327,1727295043175,-1112.32159237,0.00013,2]
[339197328,1727295043187,-369.04840763,0.00013,2]
[339197329,1727295043203,-500.57827625,0.00013,2]
[339197330,1727295043248,-1202.82442801,0.00013,2]
[339197331,1727295043303,-5025.13671271,0.00013,2]
[339197332,1727295043316,-1439.77091561,0.00013,2]
[339197333,1727295043330,-951.405,0.00013,2]
[339197334,1727295046080,-173.372483,0.00012022,2]
[339197335,1727295046090,-700.0,0.000121,4]
[339197336,1727295046100,-37430.58619768,0.00013,2]
[339197337,1727295046111,-654.24296166,0.00013,2]
[339197338,1727295046239,-14560.61554981,0.00013,2]
[339197339,1727295046251,-42639.74057242,0.00013,2]
[339197340,1727295046292,-2008.43148739,0.00013,2]
[339197349,1727295119963,500.0,0.00010164,2]
[339197350,1727295120090,500.0,0.00010164,2]
[339197351,1727295187158,500.0,0.00010164,2]
[339197352,1727295411569,250.11,0.00010959,2]
[339197355,1727295545215,500.0,0.00010164,2]
[339197357,1727295698821,714.96,9.751e-05,2]
[339197358,1727295929691,2850.0,0.000101,2]
[339197369,1727296008321,172.92,0.00010959,2]
[339197397,1727296232297,-250.0,0.00011454,2]
[339197398,1727296232306,-327.14,0.00011549,2]
[339197399,1727296232316,-150.0,0.00011574,2]
[339197400,1727296232326,-208.62,0.00011602,2]
[339197401,1727296232336,-249.13,0.00011602,2]
[339197402,1727296232347,-250.0,0.00011613,2]
[339197403,1727296232356,-155.37,0.00011674,2]
[339197404,1727296232366,-150.0,0.00011678,2]
[339197405,1727296232375,-578.82,0.00011678,2]
[339197406,1727296232384,-1000.36,0.00011708,2]
[339197407,1727296232394,-250.0,0.00011709,2]
[339197408,1727296232403,-280.39,0.00011768,2]
[339197409,1727296232413,-956.07,0.00011772,2]
[339197410,1727296232422,-180.83,0.00011813,2]
[339197411,1727296232432,-300.0,0.000119,4]
[339197412,1727296232442,-300.0,0.00011999,2]
[339197413,1727296232451,-2239.96355345,0.00012,2]
[339197414,1727296232463,-2006.99342141,0.00012,2]
[339197415,1727296232472,-700.0,0.00012,4]
[339197416,1727296232482,-714.96,0.00012015,2]
[339197417,1727296232492,-5000.0,0.00012022,2]
[339197418,1727296232501,-1100.0,0.000121,4]
[339197419,1727296232511,-1500.0,0.000122,4]
[339197421,1727296232521,-1800.0,0.000123,4]
[339197423,1727296232531,-1000.0,0.00012344,2]
[339197425,1727296232541,-300.0,0.000124,4]
[339197427,1727296232550,-100.64049612,0.00012445,2]
[339197429,1727296232562,-70.43950388,0.00012445,2]
[339197431,1727296232573,-300.0,0.000125,4]
[339197433,1727296232582,-3000.0,0.000125,3]
[339197434,1727296232592,-150.0,0.000125,2]
[339197436,1727296232601,-300.0,0.000126,4]
[339197438,1727296232611,-173.372483,0.00012623,2]
[339197440,1727296232621,-300.0,0.000127,4]
[339197442,1727296232631,-1500.0,0.00012758,2]
[339197444,1727296232641,-235.61450612,0.0001277,2]
[339197446,1727296232651,-722.52382964,0.0001277,2]
[339197448,1727296232660,-150.0,0.00012771,2]
[339197450,1727296232670,-1000.0,0.00012779,2]
[339197452,1727296232679,-56023.38,0.0001278,2]
[339197454,1727296232689,-900.0,0.000128,4]
[339197456,1727296232698,-165.10079912,0.000128,2]
[339197458,1727296232707,-1786.618334,0.00012804,2]
[339197461,1727296232719,-576.29685262,0.00012804,2]
[339197463,1727296232730,-15.50599398,0.00012804,2]
[339198152,1727296272853,500.0,0.00010164,2]
[339198153,1727296283954,500.0,0.00010164,2]
[339198157,1727296306235,500.0,0.00010164,2]
[339198158,1727296364637,500.0,0.00010164,2]
[339198159,1727296376827,500.0,0.00010164,2]
[339198160,1727296463925,1050.0,0.00011,2]
[339198161,1727296469643,712.34,9.925e-05,2]
[339198162,1727296524825,2603.85440209,0.00021,60]
[339198163,1727296737698,176.43,9.363e-05,2]
[339198164,1727296877474,159.53,0.00010959,2]
[339198173,1727297263889,710.65,9.584e-05,2]
[339198175,1727297325134,500.0,0.00010164,2]
[339198176,1727297325615,500.0,0.00010164,2]
[339198180,1727297327554,500.0,0.00010164,2]
[339198181,1727297337177,500.0,0.00010164,2]
[339198183,1727297431440,-230.482276,0.00011355,2]
[339198184,1727297431449,-167.717724,0.00011413,2]
[339198185,1727297431549,-15011.14076,0.00011413,2]
[339198186,1727297431660,-1166.971516,0.00011413,2]
[339198187,1727297431670,-298.15,0.00011416,2]
[339198188,1727297431679,-9.06331312,0.00011416,2]
[339198196,1727297437609,-1642.765,0.00011255,2]
[339198197,1727297437618,-163.33803032,0.00011416,2]
[339198198,1727297437772,-51.90865656,0.00011416,2]
[339198199,1727297437783,-1000.0,0.00011462,2]
[339198200,1727297437792,-250.0,0.00011471,2]
[339198201,1727297437802,-275.16,0.00011482,2]
[339198202,1727297437811,-150.0,0.00011505,2]
[339198203,1727297437821,-2000.0,0.00011506,2]
[339198204,1727297437830,-250.0,0.00011506,2]
[339198205,1727297437839,-250.0,0.00011515,2]
[339198206,1727297437848,-155.34,0.00011516,2]
[339198207,1727297437857,-597.96,0.00011573,2]
[339198208,1727297437867,-428.99,0.00011727,2]
[339198209,1727297437876,-299.99,0.00011727,2]
[339198210,1727297437887,-254.2,0.00011762,2]
[339198211,1727297437896,-169.72,0.00011831,2]
[339198212,1727297437905,-710.65,0.00011848,2]
[339198213,1727297437914,-273.130806,0.00012022,2]
[339198214,1727297437923,-164.222118,0.00012022,2]
[339198215,1727297437933,-10000.0,0.0001235,2]
[339198216,1727297437944,-375.49935411,0.00012418,2]
[339198217,1727297437953,-167.69,0.00012445,2]
[339198218,1727297437962,-419.60708216,0.0001268,2]
[339198219,1727297437971,-158.27,0.00012698,2]
[339198220,1727297437983,-1000.0,0.00012699,2]
[339198221,1727297437992,-150.0,0.00012699,2]
[339198222,1727297438001,-1586.1466,0.00012699,2]
[339198223,1727297438014,-1899.027,0.000127,2]
[339198224,1727297438024,-5743.7965,0.000127,2]
[339198225,1727297438033,-2126.62366794,0.000127,2]
[339198226,1727297438042,-176.75205611,0.000127,2]
[339198228,1727297438051,-338.79381374,0.000127,2]
[339198230,1727297438060,-2126.6236679,0.00012722,2]
[339198232,1727297438069,-2126.6236679,0.00012744,2]
[339198234,1727297438078,-1000.0,0.00012756,2]
[339198235,1727297438088,-7500.0,0.00012757,2]
[339198236,1727297438098,-2126.6236679,0.00012767,2]
[339198237,1727297438107,-176.75205608,0.00012767,2]
[339198238,1727297438115,-152.0,0.00012769,3]
[339198239,1727297438125,-11753.235,0.00012769,2]
[339198240,1727297438134,-2126.6236679,0.00012789,2]
[339198241,1727297438144,-151.97,0.00012789,2]
[339198242,1727297438153,-1086.49573267,0.00012799,2]
[339198243,1727297438162,-439841.80640275,0.00012799,2]
[339198244,1727297438172,-15011.1408,0.000128,2]
[339198245,1727297438182,-31114.7605,0.000128,2]
[339198246,1727297438193,-2622.0242,0.000128,2]
[339198247,1727297438202,-157.52590792,0.000128,2]
[339198248,1727297438213,-4230.4916,0.000128,2]
[339198249,1727297438223,-461.78865504,0.000128,2]
[339198250,1727297438232,-150.0,0.00012805,2]
[339198251,1727297438244,-1051.57888398,0.00012807,2]
[339198252,1727297438253,-2126.6236679,0.00012811,2]
[339198253,1727297438265,-1500.0,0.00012824,2]
[339198254,1727297438274,-2126.6236679,0.00012833,2]
[339198255,1727297438283,-176.75205608,0.00012833,2]
[339198256,1727297438294,-224.31,0.00012843,2]
[339198257,1727297438303,-461.78865503,0.0001285,2]
[339198258,1727297438313,-2126.6236679,0.00012856,2]
[339198259,1727297438322,-985.69010954,0.0001287,2]
[339198260,1727297438332,-2126.6236679,0.00012878,2]
[339198261,1727297438341,-158.31767819,0.0001289,2]
[339198262,1727297438350,-1000.0,0.00012894,2]
[339198263,1727297438359,-394.15078409,0.00012899,2]
[339198264,1727297438370,-257.36870245,0.00012899,2]
[339198265,1727297438380,-500.0,0.00012899,2]
[339198266,1727297438389,-500.0,0.00012899,2]
[339198267,1727297438399,-415.50764849,0.00012899,2]
[339198268,1727297438410,-500.0,0.00012899,2]
[339198269,1727297438421,-500.0,0.00012899,2]
[339198270,1727297438431,-354.98848082,0.00012899,2]
[339198271,1727297438440,-469.67151968,0.00012899,2]
[339198272,1727297438449,-1000.0,0.000129,2]
[339198273,1727297438458,-1000.0,0.000129,2]
[339198274,1727297438468,-1000.0,0.000129,2]
[339198275,1727297438477,-1000.0,0.000129,3]
[339198276,1727297438486,-1000.0,0.000129,2]
[339198277,1727297438496,-1000.0,0.000129,3]
[339198278,1727297438505,-1000.0,0.000129,3]
[339198279,1727297438518,-896.0,0.000129,5]
[339198280,1727297438527,-1000.0,0.000129,4]
[339198281,1727297438536,-1000.0,0.000129,3]
[339198282,1727297438546,-1000.0,0.000129,2]
[339198283,1727297438555,-1000.0,0.000129,2]
[339198284,1727297438564,-1000.0,0.000129,2]
[339198285,1727297438573,-1000.0,0.000129,3]
[339198286,1727297438582,-1000.0,0.000129,3]
[339198287,1727297438592,-1000.0,0.000129,4]
[339198288,1727297438603,-1002.0,0.000129,2]
[339198289,1727297438613,-1000.0,0.000129,3]
[339198290,1727297438623,-1000.0,0.000129,3]
[339198291,1727297438633,-1002.0,0.000129,2]
[339198292,1727297438642,-207590.61691679,0.000129,2]
[339198293,1727297438871,-6455.78708885,0.000129,2]
[339198294,1727297438883,-785.23100942,0.000129,2]
[339198295,1727297438899,-554.47157892,0.000129,2]
[339198300,1727297439448,-1271.8256352,0.0001235,2]
[339198301,1727297439461,-8728.1743648,0.0001235,2]
[339198302,1727297439472,-191346.6862245,0.000129,2]
[339198303,1727297439557,-2366.61029721,0.000129,2]
[339198313,1727297490235,500.0,0.00010164,2]
[339198316,1727297549977,500.0,0.00010164,2]
[339198317,1727297865007,709.58,9.914e-05,2]
[339198318,1727297983081,500.0,0.00010164,2]
[339198319,1727298022105,500.0,0.00010164,2]
[339198321,1727298237304,266.6,0.00010959,2]
[339198322,1727298274310,1050.0,0.00011,2]
[339198340,1727298631559,-173.54,0.0001142,2]
[339198341,1727298631569,-228.90940432,0.0001143,2]
[339198342,1727298631580,-478.64363892,0.0001143,2]
[339198343,1727298631590,-203.36,0.0001153,2]
[339198344,1727298631599,-215.54695676,0.00011551,2]
[339198345,1727298631617,-267.97304324,0.00011551,2]
[339198346,1727298631627,-348.27,0.00011566,2]
[339198347,1727298631637,-250.0,0.00011566,2]
[339198348,1727298631647,-150.8509707,0.00011589,2]
[339198349,1727298631656,-155.34,0.00011592,2]
[339198350,1727298631666,-250.0,0.00011616,2]
[339198351,1727298631675,-250.0,0.00011728,2]
[339198352,1727298631685,-198.71,0.00011867,2]
[339198353,1727298631695,-1000.0,0.00011969,2]
[339198354,1727298631705,-162.571253,0.00012022,2]
[339198355,1727298631714,-150.0,0.00012192,2]
[339198356,1727298631724,-350.92,0.00012192,2]
[339198357,1727298631734,-301.96,0.00012192,2]
[339198358,1727298631744,-351.3,0.00012192,2]
[339198359,1727298631753,-150.0,0.00012192,2]
[339198360,1727298631762,-428.27,0.00012278,2]
[339198361,1727298631772,-150.0,0.00012278,2]
[339198362,1727298631781,-297.12334589,0.00012339,2]
[339198363,1727298631793,-4251.23872556,0.00012339,2]
[339198364,1727298631803,-1000.0,0.000126,2]
[339198365,1727298631813,-173.54,0.0001268,2]
[339198366,1727298631822,-15132.74067783,0.00012689,2]
[339198367,1727298631833,-2035.89616596,0.00012689,2]
[339198368,1727298631844,-3280.85471135,0.00012689,2]
[339198369,1727298631860,-150.0,0.00012698,2]
[339198370,1727298631869,-73.22019159,0.00012698,2]
[339198371,1727298631880,-926.77980841,0.00012698,2]
[339198373,1727298632111,-1144.7797,0.00012699,2]
[339198374,1727298632127,-894.92803159,0.00012699,2]
[339198375,1727298632139,-484.60844806,0.00012699,2]
[339198376,1727298632151,-6545.42342035,0.00012699,2]
[339198377,1727298632161,-21575.687,0.00012699,2]
[339198378,1727298632171,-827.9067,0.00012699,2]
[339198379,1727298632180,-7658.9519,0.00012699,2]
[339198380,1727298632189,-214.3783,0.000127,2]
[339198381,1727298632199,-826.5722,0.000127,2]
[339198382,1727298632208,-261.1668,0.000127,2]
[339198383,1727298632217,-212.66236679,0.000127,2]
[339198384,1727298632227,-1612.0,0.000127,2]
[339198385,1727298632237,-212.66236679,0.00012722,2]
[339198386,1727298632247,-212.66236679,0.00012744,2]
[339198387,1727298632256,-212.66236679,0.00012767,2]
[339198388,1727298632265,-150.0,0.00012772,2]
[339198389,1727298632275,-150.0,0.00012772,2]
[339198390,1727298632284,-3399.23897511,0.0001278,2]
[339198391,1727298632294,-150.0,0.00012781,2]
[339198392,1727298632303,-212.66236679,0.00012789,2]
[339198393,1727298632313,-213.8018,0.000128,2]
[339198394,1727298632323,-506.6185,0.000128,2]
[339198395,1727298632332,-340.3042,0.000128,2]
[339198396,1727298632341,-10164.9362,0.000128,2]
[339198397,1727298632354,-1428.2992,0.000128,2]
[339198398,1727298632364,-12610.1644,0.000128,2]
[339198399,1727298632373,-38509.7304,0.000128,2]
[339198400,1727298632382,-5705.2097,0.000128,2]
[339198401,1727298632391,-35418.4264,0.000128,2]
[339198402,1727298632400,-158.48610629,0.000128,2]
[339198403,1727298632409,-326.1077,0.000128,2]
[339198404,1727298632418,-6736.9809,0.000128,2]
[339198405,1727298632428,-1000.0,0.000128,2]
[339198406,1727298632437,-270.23793475,0.000128,2]
[339198407,1727298632447,-997.16,0.000128,2]
[339198408,1727298632456,-150.0,0.000128,2]
[339198409,1727298632465,-169.04065988,0.000128,2]
[339198410,1727298632475,-343.06727369,0.000128,2]
[339198411,1727298632484,-1051.15532134,0.000128,2]
[339198412,1727298632494,-217.12067785,0.000128,2]
[339198413,1727298632503,-307.85910336,0.000128,2]
[339198414,1727298632512,-150.0,0.00012802,2]
[339198415,1727298632521,-150.0,0.00012802,2]
[339198416,1727298632530,-212.66236679,0.00012811,2]
[339198417,1727298632540,-212.66236679,0.00012833,2]
[339198418,1727298632550,-307.85910335,0.0001285,2]
[339198419,1727298632559,-212.66236679,0.00012856,2]
[339198420,1727298632568,-212.66236679,0.00012878,2]
[339198421,1727298632578,-166.42136767,0.0001289,2]
[339198422,1727298632587,-154.04,0.0001289,2]
[339198423,1727298632596,-166.749,0.00012898,2]
[339198424,1727298632607,-184.137,0.00012898,2]
[339198425,1727298632617,-500.0,0.00012899,2]
[339198426,1727298632626,-384.55510475,0.00012899,2]
[339198427,1727298632636,-2004.65598259,0.00012899,2]
[339198428,1727298632645,-52008.53090506,0.000129,2]
[339198429,1727298632657,-592.36206145,0.000129,2]
[339198430,1727298632668,-1098.10124655,0.000129,2]
[339198431,1727298632679,-688.39999162,0.000129,2]
[339198432,1727298632691,-2194.55656055,0.000129,2]
[339198433,1727298632702,-6026.12542846,0.000129,2]
[339198434,1727298632713,-45063.46960216,0.000129,2]
[339198435,1727298632724,-3291.72950663,0.000129,2]
[339198436,1727298632735,-5925.17501481,0.000129,2]
[339198437,1727298632758,-700.0,0.000129,2]
[339198438,1727298632769,-4773.11977575,0.000129,2]
[339198439,1727298632779,-278.60878409,0.000129,2]